bitfinex/quotes_SOLUSD_20250210
["timestamp","ask_amount","ask_price","bid_price","bid_amount"]
[1739158625647,7.8339,204.51,204.4,18.73958471]
[1739158625869,7.8339,204.51,204.42,18.73958471]
[1739158625870,6.2263,204.51,204.42,18.73958471]
[1739158626049,0.253,204.58,204.42,18.73958471]
[1739158626251,4.1634,204.58,204.42,18.73958471]
[1739158626465,13.66282853,204.57,204.4,18.73958471]
[1739158626640,4.1634,204.58,204.43,20.0]
[1739158626841,4.1634,204.58,204.4,0.73366664]
[1739158626842,0.253,204.58,204.46,18.73958471]
[1739158627060,0.253,204.58,204.48,18.73958471]
[1739158627272,0.253,204.58,204.46,18.73958471]
[1739158627449,0.253,204.58,204.49,3.9121]
[1739158627647,0.253,204.58,204.5,18.73958471]
[1739158628682,0.253,204.58,204.52,18.73958471]
[1739158628843,0.253,204.58,204.54,18.73958471]
[1739158629237,0.253,204.58,204.55,20.0]
[1739158629474,0.253,204.58,204.56,3.9108]
[1739158629838,0.253,204.58,204.57,20.0]
[1739158630045,12.48346889,204.61,204.59,20.0]
[1739158630270,12.48346889,204.61,204.6,20.0]
[1739158630647,12.48346889,204.61,204.6,68.23507471]
[1739158631067,12.48346889,204.61,204.58,18.73958471]
[1739158631266,12.48346889,204.61,204.56,3.9108]
[1739158631449,12.48346889,204.61,204.6,3.91]
[1739158631654,12.48346889,204.61,204.6,22.64958471]
[1739158632678,3.9076,204.73,204.6,22.64958471]
[1739158632878,13.41184853,204.72,204.6,3.91]
[1739158633057,13.58084853,204.72,204.6,3.91]
[1739158633258,13.58084853,204.72,204.58,3.9103]
[1739158633556,3.9079,204.71,204.56,4.64364123]
[1739158633760,13.41184853,204.7,204.56,4.64364123]
[1739158634087,13.58084853,204.7,204.56,4.64364123]
[1739158634292,13.58084853,204.7,204.58,20.0]
[1739158634460,0.169,204.7,204.61,18.73958471]
[1739158634660,0.169,204.7,204.56,3.9107]
[1739158635075,0.169,204.7,204.57,20.0]
[1739158635272,0.169,204.7,204.52,1.0]
[1739158635273,0.12549,204.69,204.5,19.47259863]
[1739158635484,0.25098,204.69,204.52,3.9114]
[1739158635680,0.169,204.68,204.54,38.73958471]
[1739158635870,0.169,204.68,204.6,18.73958471]
[1739158636187,13.58084853,204.68,204.54,19.6335768]
[1739158636482,13.58084853,204.68,204.5,13.6918]
[1739158636688,13.58084853,204.68,204.52,20.0]
[1739158636856,13.58084853,204.68,204.5,3.9119]
[1739158636857,0.25098,204.67,204.5,3.9119]
[1739158637059,0.25098,204.61,204.41,0.73337077]
[1739158637387,22.5036,204.62,204.39,0.12549]
[1739158637388,13.41184853,204.59,204.39,0.12549]
[1739158637593,13.41184853,204.59,204.44,18.73958471]
[1739158637768,10.0311,204.6,204.47,20.0]
[1739158638106,19.8062,204.6,204.42,3.9133]
[1739158638388,13.66282853,204.59,204.42,3.9133]
[1739158638571,13.66282853,204.59,204.4,3.9137]
[1739158638772,13.66282853,204.59,204.42,20.0]
[1739158638991,13.66282853,204.59,204.4,3.9137]
[1739158639286,0.12549,204.57,204.38,3.9141]
[1739158639491,19.8062,204.6,204.41,18.73958471]
[1739158639698,13.66282853,204.59,204.42,3.9135]
[1739158639892,13.41184853,204.59,204.45,18.73958471]
[1739158640069,1.0,204.7,204.45,18.73958471]
[1739158640070,10.1179,204.67,204.52,18.73958471]
[1739158640270,4.0779,204.67,204.54,18.73958471]
[1739158640492,0.12549,204.65,204.5,18.73958471]
[1739158640690,0.12549,204.65,204.48,18.73958471]
[1739158640888,0.12549,204.65,204.46,18.73958471]
[1739158641199,0.12549,204.65,204.43,0.73338134]
[1739158641200,13.53733853,204.66,204.51,18.73958471]
[1739158641396,0.12549,204.65,204.52,20.0]
[1739158641697,0.12549,204.62,204.43,18.73958471]
[1739158641862,1.12549,204.62,204.42,3.9135]
[1739158642063,0.12549,204.6,204.42,3.9135]
[1739158642297,13.53733853,204.61,204.35,7.59895949]
[1739158642298,0.12549,204.57,204.38,3.9142]
[1739158642477,0.12549,204.54,204.38,3.9142]
[1739158642877,0.12549,204.51,204.38,3.9142]
[1739158643077,0.12549,204.51,204.34,3.915]
[1739158643277,0.12549,204.49,204.3,3.9158]
[1739158643596,13.6965,204.43,204.25,0.063]
[1739158644102,9.7832,204.43,204.25,0.063]
[1739158644280,1.0,204.46,204.25,18.80258471]
[1739158644281,2.0,204.46,204.25,18.80258471]
[1739158644599,1.0,204.43,204.25,0.063]
[1739158644902,20.0,204.4,204.25,0.063]
[1739158645066,21.0,204.38,204.25,0.063]
[1739158645266,1.0,204.33,204.2,0.063]
[1739158645482,24.99077592,204.34,204.2,0.063]
[1739158645697,20.0,204.3,204.2,0.063]
[1739158645882,1.0,204.28,204.2,0.063]
[1739158646080,1.0,204.29,204.2,0.063]
[1739158646081,13.66282853,204.27,204.2,0.063]
[1739158646282,3.9156,204.31,204.2,0.063]
[1739158646499,3.915,204.34,204.2,0.063]
[1739158646785,13.66282853,204.33,204.2,0.063]
[1739158646996,13.66282853,204.28,204.2,0.063]
[1739158647199,1.25098,204.28,204.2,0.063]
[1739158647609,1.25098,204.28,204.15,0.063]
[1739158647797,0.12549,204.25,204.15,0.063]
[1739158647988,13.66282853,204.23,204.15,0.063]
[1739158648190,14.66282853,204.23,204.06,3.9203]
[1739158648394,13.41184853,204.21,204.08,20.0]
[1739158648601,6.1209,204.3,204.14,20.0]
[1739158648785,10.0368,204.3,204.15,18.73958471]
[1739158648985,10.0368,204.3,204.1,18.73958471]
[1739158648986,13.41184853,204.29,204.17,18.73958471]
[1739158649289,9.07078034,204.35,204.21,18.73958471]
[1739158649487,9.07078034,204.35,204.19,18.73958471]
[1739158649488,13.41184853,204.34,204.19,18.73958471]
[1739158649707,0.12549,204.33,204.19,18.73958471]
[1739158649910,13.41184853,204.34,204.2,3.9177]
[1739158650592,13.41184853,204.34,204.21,18.73958471]
[1739158650905,13.68808034,204.38,204.25,18.73958471]
[1739158651109,17.60238034,204.38,204.22,18.73958471]
[1739158651410,13.68808034,204.38,204.23,18.73958471]
[1739158651612,13.68808034,204.38,204.2,13.712]
[1739158651613,13.53733853,204.37,204.21,18.73958471]
[1739158651919,6.1209,204.38,204.28,18.73958471]
[1739158652083,6.1209,204.38,204.24,38.73958471]
[1739158652084,10.0352,204.38,204.24,38.73958471]
[1739158652291,13.41184853,204.37,204.25,20.0]
[1739158652791,13.41184853,204.37,204.22,22.65688471]
[1739158653301,6.1209,204.38,204.24,18.73958471]
[1739158653489,6.1209,204.38,204.27,20.0]
[1739158653682,6.1209,204.38,204.22,4.65149271]
[1739158653683,0.12549,204.36,204.22,22.65688471]
[1739158653910,4.16558,204.36,204.22,3.9173]
[1739158654086,1.0,204.42,204.22,3.9173]
[1739158654087,6.3041,204.53,204.35,18.73958471]
[1739158654284,6.3041,204.53,204.43,18.73958471]
[1739158654486,6.3041,204.61,204.47,18.73958471]
[1739158654715,7.56718034,204.63,204.53,18.73958471]
[1739158654889,7.56718034,204.63,204.55,18.73958471]
[1739158655210,31.35689897,204.67,204.53,18.73958471]
[1739158655211,7.56718034,204.58,204.53,18.73958471]
[1739158655609,7.56718034,204.58,204.51,18.73958471]
[1739158655808,7.56718034,204.58,204.46,3.9127]
[1739158656004,7.56718034,204.58,204.45,18.73958471]
[1739158656208,0.25098,204.57,204.41,18.73958471]
[1739158656409,13.66282853,204.57,204.41,18.73958471]
[1739158656818,13.66282853,204.57,204.39,18.73958471]
[1739158656989,13.66282853,204.57,204.37,18.73958471]
[1739158657301,13.66282853,204.57,204.33,0.73369942]
[1739158657302,13.66282853,204.57,204.39,18.73958471]
[1739158657505,13.66282853,204.57,204.41,18.73958471]
[1739158657688,14.66282853,204.57,204.39,18.73958471]
[1739158657889,0.12549,204.54,204.37,18.73958471]
[1739158658094,0.12549,204.54,204.35,4.912]
[1739158658095,0.12549,204.52,204.35,23.65158471]
[1739158658305,13.53733853,204.53,204.39,18.73958471]
[1739158658494,13.53733853,204.53,204.41,18.73958471]
[1739158658697,0.12549,204.52,204.35,4.912]
[1739158658898,0.12549,204.52,204.37,18.73958471]
[1739158659911,3.9117,204.51,204.37,18.73958471]
[1739158660309,6.1316,204.54,204.43,18.73958471]
[1739158660524,0.03,204.61,204.47,18.73958471]
[1739158660826,13.69282853,204.61,204.47,18.73958471]
[1739158661117,3.9103,204.59,204.47,18.73958471]
[1739158661309,0.03,204.61,204.49,18.73958471]
[1739158661493,0.03,204.61,204.51,18.73958471]
[1739158661694,0.03,204.61,204.41,0.12549]
[1739158661695,0.03,204.61,204.57,18.73958471]
[1739158662202,0.03,204.61,204.53,18.73958471]
[1739158662401,0.03,204.61,204.55,18.73958471]
[1739158662717,0.03,204.61,204.5,18.73958471]
[1739158662718,0.03,204.61,204.57,18.73958471]
[1739158663411,0.03,204.61,204.53,18.73958471]
[1739158663715,0.03,204.61,204.49,0.73316588]
[1739158663716,0.03,204.61,204.6,18.73958471]
[1739158664328,0.03,204.61,204.56,18.73958471]
[1739158665022,0.03,204.61,204.58,18.73958471]
[1739158665224,0.03,204.61,204.6,18.73958471]
[1739158665389,0.03,204.61,204.51,0.85844262]
[1739158665726,0.03,204.61,204.55,18.73958471]
[1739158666497,0.03,204.61,204.5,18.73958471]
[1739158666694,0.03,204.61,204.6,18.73958471]
[1739158667622,0.03,204.61,204.6,37.60465942]
[1739158667821,0.03,204.61,204.6,19.47234631]
[1739158667997,0.03,204.61,204.6,18.73958471]
[1739158668195,0.03,204.61,204.6,18.86507471]
[1739158668394,0.03,204.61,204.6,37.60465942]
[1739158668600,0.03,204.61,204.6,38.46291013]
[1739158668796,0.03,204.61,204.6,19.47234542]
[1739158669612,0.03,204.61,204.6,37.60465942]
[1739158669916,0.03,204.61,204.6,19.47236326]
[1739158670493,0.03,204.61,204.6,38.46292797]
[1739158670697,0.03,204.79,204.64,0.12549]
[1739158671027,13.7026,204.79,204.63,38.73958471]
[1739158671214,13.7026,204.79,204.65,18.73958471]
[1739158671541,13.58084853,204.78,204.63,18.73958471]
[1739158671701,13.66282853,204.74,204.54,18.73958471]
[1739158671905,13.66282853,204.74,204.56,18.73958471]
[1739158672198,13.66282853,204.74,204.53,3.9113]
[1739158672199,13.6771,204.72,204.53,18.73958471]
[1739158672419,13.6771,204.72,204.57,18.73958471]
[1739158672623,13.58084853,204.71,204.57,18.73958471]
[1739158672825,0.12549,204.7,204.55,18.73958471]
[1739158673027,13.41184853,204.71,204.55,18.73958471]
[1739158673207,0.169,204.69,204.57,18.73958471]
[1739158674224,0.169,204.69,204.53,18.73958471]
[1739158674225,13.6798,204.68,204.53,18.73958471]
[1739158674424,13.41184853,204.67,204.51,18.73958471]
[1739158674623,13.58084853,204.67,204.51,18.73958471]
[1739158675001,0.12549,204.66,204.49,18.73958471]
[1739158675197,6.4303,204.65,204.47,18.73958471]
[1739158675404,0.25098,204.64,204.45,18.73958471]
[1739158675717,0.12549,204.61,204.43,18.73958471]
[1739158676326,0.12549,204.61,204.41,18.73958471]
[1739158676327,0.12549,204.58,204.41,18.73958471]
[1739158676536,0.12549,204.58,204.37,18.73958471]
[1739158676906,0.12549,204.58,204.39,18.73958471]
[1739158677505,0.12549,204.58,204.44,18.73958471]
[1739158677702,13.41184853,204.59,204.44,18.73958471]
[1739158678038,13.6851,204.6,204.48,18.73958471]
[1739158678336,13.6825,204.64,204.5,18.73958471]
[1739158678805,0.12549,204.62,204.45,18.73958471]
[1739158679008,13.41184853,204.63,204.47,18.73958471]
[1739158679321,0.25098,204.62,204.45,18.73958471]
[1739158680434,13.66282853,204.59,204.39,22.65348471]
[1739158680731,13.66282853,204.56,204.37,18.73958471]
[1739158680935,0.12549,204.56,204.37,18.73958471]
[1739158681104,20.0,204.58,204.41,18.73958471]
[1739158681303,13.7144,204.61,204.52,18.73958471]
[1739158681304,0.03,204.61,204.52,18.73958471]
[1739158681503,0.03,204.61,204.54,18.73958471]
[1739158681741,0.03,204.61,204.56,18.73958471]
[1739158683038,0.03,204.61,204.52,18.73958471]
[1739158683627,0.03,204.61,204.56,18.73958471]
[1739158683811,0.03,204.61,204.54,18.73958471]
[1739158684306,0.03,204.61,204.51,3.9116]
[1739158684507,0.03,204.61,204.5,18.73958471]
[1739158684718,0.03,204.61,204.5,22.65148471]
[1739158685236,0.03,204.61,204.48,18.73958471]
[1739158685439,0.03,204.61,204.46,22.65218471]
[1739158686319,0.15549,204.61,204.44,22.65258471]
[1739158686917,13.66282853,204.6,204.43,3.9132]
[1739158687239,7.7311,204.59,204.4,18.73958471]
[1739158687441,0.12549,204.56,204.38,18.73958471]
[1739158687612,0.12549,204.56,204.4,18.73958471]
[1739158687813,7.7311,204.59,204.42,18.73958471]
[1739158688169,13.66282853,204.55,204.36,3.9146]
[1739158688314,0.12549,204.52,204.35,3.9147]
[1739158688720,3.9112,204.54,204.4,18.73958471]
[1739158688939,3.9104,204.58,204.44,18.73958471]
[1739158689322,0.25098,204.57,204.42,18.73958471]
[1739158689524,3.9104,204.58,204.45,18.73958471]
[1739158689733,3.9104,204.58,204.46,18.73958471]
[1739158690042,13.53733853,204.57,204.43,38.73958471]
[1739158690230,13.6865,204.58,204.43,38.73958471]
[1739158690416,13.53733853,204.57,204.43,38.73958471]
[1739158690608,13.53733853,204.57,204.43,22.65278471]
[1739158690821,0.12549,204.56,204.39,18.73958471]
[1739158691431,13.53733853,204.57,204.41,18.73958471]
[1739158691641,3.9104,204.58,204.47,18.73958471]
[1739158691950,0.03,204.61,204.52,18.73958471]
[1739158692155,0.03,204.61,204.54,18.73958471]
[1739158692751,0.03,204.61,204.54,22.65068471]
[1739158693128,0.03,204.61,204.54,18.73958471]
[1739158693318,0.03,204.61,204.54,22.65068471]
[1739158693918,0.03,204.61,204.5,18.73958471]
[1739158694123,0.03,204.61,204.47,3.9124]
[1739158694433,3.9398,204.61,204.49,3.9121]
[1739158694639,0.03,204.61,204.55,18.73958471]
[1739158695120,0.03,204.61,204.49,3.9121]
[1739158695323,0.03,204.61,204.49,22.65168471]
[1739158695534,0.03,204.61,204.51,18.73958471]
[1739158695853,13.44184853,204.61,204.44,18.73958471]
[1739158696055,0.03,204.61,204.48,18.73958471]
[1739158696426,13.53733853,204.59,204.46,18.73958471]
[1739158696740,13.53733853,204.59,204.4,19.47301284]
[1739158696741,0.12549,204.58,204.44,22.65248471]
[1739158697048,0.12549,204.58,204.4,3.9137]
[1739158697236,0.12549,204.58,204.42,18.73958471]
[1739158697644,0.12549,204.58,204.38,18.73958471]
[1739158697824,0.12549,204.56,204.38,22.65368471]
[1739158698160,2.5754,204.59,204.35,18.73958471]
[1739158698161,13.66282853,204.54,204.35,18.73958471]
[1739158698364,13.66282853,204.52,204.35,18.73958471]
[1739158698522,0.12549,204.49,204.35,22.65428471]
[1739158698922,13.41184853,204.5,204.38,20.0]
[1739158699121,3.9115,204.53,204.44,18.73958471]
[1739158699338,6.1557,204.55,204.44,18.73958471]
[1739158699550,6.1557,204.55,204.45,18.73958471]
[1739158699728,10.0667,204.55,204.41,18.73958471]
[1739158699945,6.1557,204.55,204.43,18.73958471]
[1739158700246,13.41184853,204.54,204.43,18.73958471]
[1739158700454,6.1557,204.55,204.44,3.9131]
[1739158700756,1.5754,204.59,204.44,14.42946373]
[1739158700947,1.5754,204.59,204.49,18.73958471]
[1739158701154,13.41184853,204.58,204.45,18.73958471]
[1739158701457,0.25098,204.57,204.44,3.9131]
[1739158701757,0.25098,204.57,204.42,3.9133]
[1739158701960,0.25098,204.57,204.4,3.9137]
[1739158702160,13.66282853,204.54,204.35,18.73958471]
[1739158702464,0.12549,204.51,204.36,3.9145]
[1739158702755,13.53733853,204.52,204.39,18.73958471]
[1739158702968,0.12549,204.51,204.36,3.9145]
[1739158703267,6.1557,204.5,204.33,18.73958471]
[1739158703468,13.66282853,204.49,204.33,18.73958471]
[1739158704275,13.66282853,204.49,204.31,18.73958471]
[1739158704564,0.12549,204.45,204.36,0.063]
[1739158705471,9.7805,204.49,204.36,0.063]
[1739158705472,6.1557,204.5,204.36,18.80258471]
[1739158705767,6.1557,204.5,204.39,18.73958471]
[1739158705963,13.66282853,204.49,204.36,0.063]
[1739158706141,15.23822853,204.47,204.36,0.063]
[1739158706559,3.9127,204.46,204.36,0.063]
[1739158706865,13.66282853,204.45,204.36,0.063]
[1739158707072,14.66282853,204.45,204.36,0.063]
[1739158707273,0.25098,204.42,204.23,18.73958471]
[1739158707771,0.25098,204.4,204.23,18.73958471]
[1739158707966,13.66282853,204.38,204.23,18.73958471]
[1739158708162,13.66282853,204.38,204.22,3.9173]
[1739158708363,0.12549,204.38,204.26,18.73958471]
[1739158708560,6.1557,204.39,204.26,18.73958471]
[1739158708763,10.0698,204.39,204.26,18.73958471]
[1739158709081,10.0698,204.39,204.24,18.73958471]
[1739158709082,13.66282853,204.38,204.24,18.73958471]
[1739158709577,6.1557,204.39,204.32,18.73958471]
[1739158709875,6.1557,204.46,204.34,18.73958471]
[1739158710056,0.25098,204.45,204.34,18.73958471]
[1739158710383,13.66282853,204.45,204.34,18.73958471]
[1739158710553,13.66282853,204.45,204.34,22.65448471]
[1739158710867,17.57582853,204.45,204.3,3.9157]
[1739158711072,17.57582853,204.45,204.28,18.73958471]
[1739158711073,17.57582853,204.45,204.28,22.65558471]
[1739158711242,13.66282853,204.45,204.3,18.73958471]
[1739158711447,13.66282853,204.45,204.32,18.73958471]
[1739158712472,13.66282853,204.45,204.28,13.7064]
[1739158712473,17.57572853,204.45,204.3,18.73958471]
[1739158712659,13.66282853,204.45,204.31,9.789]
[1739158712855,17.57572853,204.45,204.31,9.789]
[1739158713161,18.57572853,204.45,204.29,3.916]
[1739158713360,13.66282853,204.45,204.3,18.73958471]
[1739158713673,6.1557,204.46,204.34,18.73958471]
[1739158713874,6.1557,204.46,204.36,18.73958471]
[1739158714081,13.66282853,204.45,204.32,18.73958471]
[1739158714252,13.66282853,204.45,204.29,13.706]
[1739158714575,13.66282853,204.45,204.28,18.73958471]
[1739158714576,13.66282853,204.43,204.25,9.7918]
[1739158714749,7.1557,204.46,204.28,18.73958471]
[1739158714750,0.12549,204.4,204.28,18.73958471]
[1739158715377,0.12549,204.41,204.28,18.73958471]
[1739158715554,4.9129,204.45,204.26,18.73958471]
[1739158715873,13.66282853,204.44,204.26,18.73958471]
[1739158716250,0.25098,204.4,204.25,3.9167]
[1739158716450,0.25098,204.38,204.25,3.9167]
[1739158716651,0.12549,204.35,204.23,3.9171]
[1739158716870,13.66282853,204.33,204.23,3.9171]
[1739158717057,6.1557,204.34,204.29,0.063]
[1739158718776,13.66282853,204.33,204.29,0.063]
[1739158719146,13.66282853,204.33,204.18,18.73958471]
[1739158719352,13.66282853,204.33,204.19,3.9177]
[1739158719353,0.12549,204.31,204.19,3.9177]
[1739158719752,0.12549,204.31,204.21,18.73958471]
[1739158720263,13.66282853,204.31,204.19,22.65728471]
[1739158720450,1.4822,204.32,204.21,18.73958471]
[1739158720646,13.66282853,204.31,204.22,3.9173]
[1739158720851,17.57852853,204.31,204.2,3.9177]
[1739158721053,13.66282853,204.31,204.19,18.73958471]
[1739158721261,1.4822,204.32,204.23,18.73958471]
[1739158721476,1.4822,204.32,204.16,14.44911696]
[1739158721477,7.6352,204.4,204.27,18.73958471]
[1739158721681,6.0393,204.46,204.26,1.0]
[1739158721851,6.0393,204.46,204.35,18.73958471]
[1739158722275,6.0393,204.46,204.36,18.73958471]
[1739158722483,6.0393,204.46,204.34,18.73958471]
[1739158722683,6.0393,204.46,204.35,18.73958471]
[1739158723578,6.0393,204.46,204.37,18.73958471]
[1739158723757,1.5959,204.49,204.37,18.73958471]
[1739158724086,0.25098,204.46,204.33,38.73958471]
[1739158724255,0.25098,204.46,204.33,20.0]
[1739158724596,3.9128,204.46,204.33,20.0]
[1739158724788,13.69282853,204.45,204.33,3.9152]
[1739158724982,13.69282853,204.45,204.29,3.916]
[1739158725870,13.66282853,204.41,204.26,3.9165]
[1739158726079,0.25098,204.41,204.24,18.73958471]
[1739158726271,0.25098,204.41,204.22,3.9173]
[1739158726272,0.25098,204.41,204.26,18.73958471]
[1739158726779,13.41184853,204.42,204.22,18.73958471]
[1739158726780,13.66282853,204.39,204.22,18.73958471]
[1739158727158,14.66282853,204.39,204.22,18.73958471]
[1739158727672,14.66282853,204.39,204.2,18.73958471]
[1739158727870,15.66282853,204.39,204.2,18.73958471]
[1739158728192,13.66282853,204.35,204.2,18.73958471]
[1739158728391,13.66282853,204.35,204.22,18.73958471]
[1739158728691,0.25098,204.34,204.19,3.9179]
[1739158728864,1.6549,204.35,204.19,3.9179]
[1739158728865,13.66282853,204.32,204.19,3.9179]
[1739158729072,0.25098,204.32,204.19,3.9179]
[1739158729690,13.66282853,204.32,204.19,3.9179]
[1739158729893,17.57842853,204.32,204.19,3.9179]
[1739158730992,17.57842853,204.32,204.17,3.9183]
[1739158731294,27.36692853,204.32,204.17,3.9183]
[1739158731588,27.36692853,204.32,204.21,18.73958471]
[1739158731589,0.25098,204.32,204.21,18.73958471]
[1739158731786,1.6549,204.35,204.23,18.73958471]
[1739158732086,3.914,204.4,204.25,18.73958471]
[1739158732496,3.914,204.4,204.21,18.73958471]
[1739158732665,13.66282853,204.39,204.23,18.73958471]
[1739158732861,13.66282853,204.39,204.21,18.73958471]
[1739158733067,13.66282853,204.37,204.19,18.73958471]
[1739158733589,13.66282853,204.37,204.21,18.73958471]
[1739158733775,0.25098,204.37,204.23,18.73958471]
[1739158733968,0.25098,204.37,204.25,18.73958471]
[1739158734362,13.66282853,204.37,204.21,18.73958471]
[1739158734795,13.66282853,204.37,204.19,18.73958471]
[1739158734995,27.36602853,204.33,204.17,18.73958471]
[1739158735181,0.25098,204.31,204.16,3.9184]
[1739158735710,0.25098,204.31,204.17,18.72246313]
[1739158736191,6.0577,204.27,204.15,18.78546313]
[1739158736386,0.25098,204.25,204.15,0.063]
[1739158736593,6.0577,204.27,204.15,3.9816]
[1739158736896,6.0577,204.33,204.21,18.72246313]
[1739158737090,6.0577,204.33,204.23,18.72246313]
[1739158737603,6.0577,204.33,204.17,13.714]
[1739158737604,6.0577,204.33,204.24,18.71265123]
[1739158737774,6.0577,204.41,204.28,18.71265123]
[1739158738090,6.0577,204.41,204.26,18.71265123]
[1739158738091,13.66282853,204.4,204.26,18.71265123]
[1739158738400,13.66282853,204.4,204.24,18.71265123]
[1739158738793,13.66282853,204.4,204.26,18.71265123]
[1739158738978,9.9714,204.41,204.27,18.71265123]
[1739158739183,9.9714,204.41,204.21,13.7113]
[1739158739184,13.66282853,204.4,204.25,18.71265123]
[1739158739392,13.66282853,204.4,204.23,18.71265123]
[1739158739584,14.66282853,204.4,204.21,3.9175]
[1739158739990,13.66282853,204.36,204.21,3.9175]
[1739158740378,13.66282853,204.36,204.19,22.63035123]
[1739158741197,3.9148,204.35,204.19,22.63035123]
[1739158741504,3.9148,204.35,204.19,13.7124]
[1739158741671,6.0577,204.41,204.25,18.71265123]
[1739158741672,3.9138,204.4,204.25,18.71265123]
[1739158741878,6.0577,204.41,204.29,18.71265123]
[1739158742173,20.0,204.37,204.21,18.71265123]
[1739158742376,13.66282853,204.36,204.19,32.48805123]
[1739158742688,0.25098,204.36,204.21,18.71265123]
[1739158743107,13.66282853,204.34,204.19,0.063]
[1739158743298,13.66282853,204.34,204.19,3.9808]
[1739158743603,6.0577,204.41,204.28,18.71265123]
[1739158743783,6.0577,204.41,204.32,18.71265123]
[1739158743986,6.0577,204.41,204.3,18.71265123]
[1739158744379,6.0577,204.41,204.23,0.73400369]
[1739158744380,6.0577,204.41,204.32,18.71265123]
[1739158744574,0.03,204.45,204.32,18.71265123]
[1739158744896,0.03,204.45,204.34,18.71265123]
[1739158745082,0.03,204.45,204.37,3.9144]
[1739158745676,0.03,204.45,204.38,18.71265123]
[1739158745877,0.03,204.45,204.37,3.9144]
[1739158746299,0.03,204.45,204.38,18.71265123]
[1739158746506,0.03,204.45,204.37,3.9144]
[1739158746697,0.03,204.45,204.35,3.9147]
[1739158747075,0.03,204.45,204.3,18.71265123]
[1739158747292,0.03,204.45,204.34,18.71265123]
[1739158747489,0.03,204.45,204.31,0.7339162]
[1739158747490,0.03,204.45,204.36,18.71265123]
[1739158748187,0.03,204.45,204.34,18.71265123]
[1739158748393,0.03,204.45,204.32,18.71265123]
[1739158748911,0.03,204.45,204.37,18.71265123]
[1739158749089,0.03,204.45,204.39,18.71265123]
[1739158749408,0.03,204.45,204.35,3.9147]
[1739158750006,0.03,204.45,204.37,18.71265123]
[1739158750308,0.03,204.45,204.36,18.71265123]
[1739158750507,0.03,204.45,204.38,18.71265123]
[1739158750725,0.03,204.45,204.35,22.62735123]
[1739158751711,0.03,204.45,204.36,18.71265123]
[1739158752216,0.03,204.45,204.44,18.71265123]
[1739158752581,0.03,204.45,204.4,18.71265123]
[1739158752981,0.03,204.45,204.39,18.71265123]
[1739158753290,0.03,204.45,204.35,18.71265123]
[1739158753698,0.03,204.45,204.41,18.71265123]
[1739158753902,0.03,204.45,204.38,18.71265123]
[1739158754215,0.03,204.45,204.34,18.71265123]
[1739158754412,0.03,204.45,204.36,18.71265123]
[1739158754608,0.03,204.45,204.38,18.71265123]
[1739158754814,0.03,204.45,204.4,18.71265123]
[1739158754994,0.03,204.45,204.34,0.73385307]
[1739158754995,0.03,204.45,204.41,18.71265123]
[1739158755509,0.03,204.45,204.39,18.71265123]
[1739158755810,0.03,204.45,204.42,11.49658041]
[1739158756686,0.03,204.45,204.44,11.49658041]
[1739158757793,0.03,204.45,204.42,11.49658041]
[1739158757995,0.03,204.45,204.4,11.49658041]
[1739158758402,0.03,204.45,204.38,11.49658041]
[1739158758718,0.03,204.45,204.4,11.49658041]
[1739158758897,0.03,204.45,204.42,11.49658041]
[1739158759099,0.03,204.45,204.44,11.49658041]
[1739158759986,0.03,204.45,204.43,11.49658041]
[1739158760187,0.03,204.45,204.37,15.41088041]
[1739158760417,0.03,204.45,204.35,11.49658041]
[1739158760993,0.03,204.45,204.33,11.49658041]
[1739158761314,13.66282853,204.43,204.29,11.49658041]
[1739158761494,13.66282853,204.43,204.27,11.49658041]
[1739158762100,0.25098,204.39,204.25,11.49658041]
[1739158762813,0.25098,204.39,204.27,11.49658041]
[1739158763115,0.25098,204.39,204.25,11.49658041]
[1739158763292,3.9142,204.38,204.27,11.49658041]
[1739158763490,23.9137,204.41,204.29,11.49658041]
[1739158763719,23.9137,204.41,204.3,18.69920706]
[1739158764220,13.66282853,204.4,204.26,18.69920706]
[1739158764811,3.9134,204.43,204.31,18.69920706]